lending/lending_fUSD_20240124
["ID","MTS","AMOUNT","RATE_DAILY","PERIOD"]
[312638024,1706122326174,-500.0,0.00050136,31]
[312638025,1706122326185,-552.33,0.00050136,31]
[312638026,1706122326194,-508.81,0.00050136,31]
[312638027,1706122326204,-500.0,0.00050136,31]
[312638028,1706122326214,-813.7,0.00050136,31]
[312638029,1706122326224,-500.0,0.00050136,31]
[312638030,1706122326233,-500.0,0.00050136,31]
[312638031,1706122326242,-733.58,0.00050136,31]
[312638032,1706122326251,-500.0,0.00050136,31]
[312638033,1706122326261,-509.4,0.00050136,31]
[312638034,1706122326270,-500.0,0.00050136,31]
[312638035,1706122326279,-500.0,0.00050136,31]
[312638036,1706122326294,-656.53,0.00050136,31]
[312638037,1706122326303,-500.0,0.00050136,31]
[312638038,1706122326313,-748.28,0.00050136,31]
[312638039,1706122326322,-500.0,0.00050136,31]
[312638040,1706122326333,-500.0,0.00050136,31]
[312638041,1706122326342,-737.23,0.00050136,31]
[312638042,1706122326351,-500.0,0.00050136,31]
[312638043,1706122326360,-500.0,0.00050136,31]
[312638044,1706122326369,-651.3,0.00050136,31]
[312638045,1706122326380,-500.0,0.00050136,31]
[312638046,1706122326389,-1130.82,0.00050136,7]
[312638047,1706122326398,-743.9,0.00050136,31]
[312638048,1706122326407,-695.86,0.00050136,31]
[312638049,1706122326416,-500.0,0.00050136,31]
[312638050,1706122326426,-221.21475029,0.00050136,31]
[312638051,1706122326435,-500.0,0.00050136,31]
[312638052,1706122326444,-524.48,0.00050136,31]
[312638053,1706122326453,-500.0,0.00050136,31]
[312638054,1706122326462,-500.0,0.00050136,31]
[312638055,1706122326471,-577.96,0.00050136,31]
[312638056,1706122326480,-500.0,0.00050136,31]
[312638057,1706122326490,-500.0,0.00050136,31]
[312638058,1706122326499,-500.0,0.00050136,31]
[312638059,1706122326509,-822.67,0.00050136,31]
[312638060,1706122326518,-500.0,0.00050136,31]
[312638061,1706122326527,-500.0,0.00050136,31]
[312638062,1706122326537,-500.0,0.00050136,31]
[312638063,1706122326546,-500.0,0.00050136,31]
[312638064,1706122326555,-539.38,0.00050136,31]
[312638065,1706122326565,-500.0,0.00050136,31]
[312638066,1706122326574,-340.41246303,0.00050136,31]
[312638067,1706122326584,-754.54,0.00050136,31]
[312638068,1706122326593,-748.39,0.00050136,31]
[312638069,1706122326602,-759.37,0.00050136,31]
[312638070,1706122326612,-596.17,0.00050136,31]
[312638071,1706122326621,-311.12170739,0.00050136,31]
[312638072,1706122326631,-500.0,0.00050136,31]
[312638073,1706122326640,-590.14,0.00050136,31]
[312638074,1706122326650,-500.0,0.00050136,31]
[312638075,1706122326660,-574.37,0.00050136,31]
[312638076,1706122326669,-836.66,0.00050136,31]
[312638077,1706122326678,-500.0,0.00050136,31]
[312638078,1706122326688,-1000.0,0.00050136,30]
[312638079,1706122326697,-834.27,0.00050136,31]
[312638080,1706122326707,-500.0,0.00050136,31]
[312638081,1706122326717,-500.0,0.00050136,31]
[312638082,1706122326727,-500.0,0.00050136,31]
[312638083,1706122326737,-500.0,0.00050136,31]
[312638084,1706122326747,-500.0,0.00050136,31]
[312638085,1706122326757,-561.15,0.00050136,31]
[312638086,1706122326766,-571.13,0.00050136,31]
[312638087,1706122326776,-500.0,0.00050136,31]
[312638088,1706122326785,-500.0,0.00050136,31]
[312638089,1706122326794,-722.96,0.00050136,31]
[312638090,1706122326804,-2163.99,0.00050136,31]
[312638091,1706122326813,-332.14314022,0.00050136,31]
[312638092,1706122326823,-574.84,0.00050136,31]
[312638093,1706122326834,-500.0,0.00050136,31]
[312638094,1706122326844,-514.92634631,0.00050136,31]
[312638095,1706122326853,-500.0,0.00050136,31]
[312638096,1706122326862,-500.0,0.00050136,31]
[312638097,1706122326872,-500.0,0.00050136,31]
[312638098,1706122326882,-624.88,0.00050136,31]
[312638099,1706122326891,-500.0,0.00050136,31]
[312638100,1706122326901,-1020.09,0.00050136,31]
[312638101,1706122326911,-500.0,0.00050136,30]
[312638102,1706122326921,-683.14,0.00050136,31]
[312638103,1706122326944,-500.0,0.00050136,31]
[312638104,1706122326954,-500.0,0.00050136,31]
[312638105,1706122326963,-1074.38,0.00050136,31]
[312638106,1706122326974,-500.0,0.00050136,31]
[312638107,1706122326983,-523.11580113,0.00050136,31]
[312638108,1706122326993,-536.7002251,0.00050136,31]
[312638109,1706122327002,-500.0,0.00050136,31]
[312638110,1706122327012,-774.89,0.00050136,31]
[312638111,1706122327023,-500.0,0.00050136,31]
[312638112,1706122327034,-500.0,0.00050136,31]
[312638113,1706122327043,-598.13,0.00050136,31]
[312638114,1706122327054,-590.69,0.00050136,31]
[312638115,1706122327063,-822.96,0.00050136,31]
[312638116,1706122327073,-1001.25,0.00050136,31]
[312638117,1706122327084,-739.58,0.00050136,31]
[312638118,1706122327094,-500.0,0.00050136,31]
[312638119,1706122327309,-500.0,0.00050136,31]
[312638120,1706122327319,-500.0,0.00050136,31]
[312638121,1706122327330,-221.53703624,0.00050136,31]
[312638122,1706122327339,-557.33,0.00050136,31]
[312638123,1706122327348,-500.0,0.00050136,31]
[312638124,1706122327357,-500.0,0.00050136,31]
[312638125,1706122327367,-535.27,0.00050136,31]
[312638126,1706122327376,-1123.3,0.00050136,31]
[312638127,1706122327385,-566.67578013,0.00050136,31]
[312638128,1706122327395,-559.97,0.00050136,31]
[312638129,1706122327405,-500.0,0.00050136,31]
[312638130,1706122327415,-500.0,0.00050136,31]
[312638131,1706122327425,-545.51,0.00050136,31]
[312638132,1706122327434,-523.20539216,0.00050136,31]
[312638133,1706122327444,-703.65,0.00050136,31]
[312638134,1706122327454,-500.0,0.00050136,31]
[312638135,1706122327463,-520.40769347,0.00050136,31]
[312638136,1706122327472,-500.0,0.00050136,31]
[312638137,1706122327481,-507.77,0.00050136,31]
[312638138,1706122327490,-500.0,0.00050136,31]
[312638139,1706122327500,-500.0,0.00050136,31]
[312638140,1706122327509,-500.0,0.00050136,31]
[312638141,1706122327519,-500.0,0.00050136,31]
[312638142,1706122327528,-500.0,0.00050136,31]
[312638143,1706122327538,-500.0,0.00050136,31]
[312638144,1706122327547,-500.0,0.00050136,31]
[312638145,1706122327556,-514.74648744,0.00050136,31]
[312638146,1706122327565,-744.37,0.00050136,31]
[312638147,1706122327575,-500.0,0.00050136,31]
[312638148,1706122327585,-540.51,0.00050136,31]
[312638149,1706122327594,-638.61,0.00050136,31]
[312638150,1706122327604,-500.0,0.00050136,31]
[312638151,1706122327613,-664.27,0.00050136,31]
[312638152,1706122327623,-1168.99,0.00050136,31]
[312638153,1706122327632,-623.83,0.00050136,31]
[312638154,1706122327642,-500.0,0.00050136,31]
[312638155,1706122327651,-500.0,0.00050136,31]
[312638156,1706122327660,-1288.27,0.00050136,31]
[312638157,1706122327670,-500.0,0.00050136,31]
[312638158,1706122327679,-500.0,0.00050136,31]
[312638159,1706122327689,-500.0,0.00050136,31]
[312638160,1706122327698,-500.0,0.00050136,31]
[312638161,1706122327707,-508.95130377,0.00050136,31]
[312638162,1706122327717,-1216.74,0.00050136,31]
[312638163,1706122327727,-500.0,0.00050136,31]
[312638164,1706122327737,-500.0,0.00050136,31]
[312638165,1706122327747,-789.81,0.00050136,31]
[312638166,1706122327757,-1358.17,0.00050136,31]
[312638167,1706122327767,-500.0,0.00050136,31]
[312638168,1706122327776,-500.0,0.00050136,31]
[312638169,1706122327786,-500.0,0.00050136,31]
[312638170,1706122327796,-500.0,0.00050136,31]
[312638171,1706122327805,-500.0,0.00050136,31]
[312638172,1706122327815,-500.0,0.00050136,31]
[312638173,1706122327824,-500.0,0.00050136,31]
[312638174,1706122327836,-500.0,0.00050136,31]
[312638175,1706122327845,-835.3,0.00050136,31]
[312638176,1706122327854,-500.0,0.00050136,31]
[312638177,1706122327864,-5442.29,0.00050136,31]
[312638178,1706122327874,-500.0,0.00050136,31]
[312638179,1706122327883,-500.0,0.00050136,31]
[312638180,1706122327893,-500.0,0.00050136,31]
[312638181,1706122327903,-609.87,0.00050136,31]
[312638182,1706122327913,-500.0,0.00050136,31]
[312638183,1706122327922,-1213.12,0.00050136,31]
[312638184,1706122327931,-500.0,0.00050136,31]
[312638185,1706122327941,-500.0,0.00050136,31]
[312638186,1706122327950,-500.0,0.00050136,31]
[312638187,1706122327959,-500.0,0.00050136,31]
[312638188,1706122327968,-766.55,0.00050136,31]
[312638189,1706122327977,-500.0,0.00050136,31]
[312638190,1706122327986,-950.1,0.00050136,31]
[312638191,1706122327996,-891.54,0.00050136,31]
[312638192,1706122328005,-789.01,0.00050136,31]
[312638193,1706122328014,-571.48,0.00050136,31]
[312638194,1706122328024,-674.93,0.00050136,31]
[312638195,1706122328034,-754.8,0.00050136,31]
[312638196,1706122328043,-500.0,0.00050136,31]
[312638197,1706122328052,-994.52,0.00050136,31]
[312638198,1706122328062,-500.0,0.00050136,31]
[312638199,1706122328072,-500.0,0.00050136,31]
[312638200,1706122328085,-619.7,0.00050136,31]
[312638201,1706122328094,-1265.56,0.00050136,31]
[312638202,1706122328104,-500.0,0.00050136,31]
[312638203,1706122328114,-553.3,0.00050136,31]
[312638204,1706122328123,-522.35509829,0.00050136,31]
[312638205,1706122328134,-697.79,0.00050136,31]
[312638206,1706122328143,-1070.96,0.00050136,31]
[312638207,1706122328152,-500.0,0.00050136,31]
[312638208,1706122328162,-1137.93,0.00050136,31]
[312638209,1706122328172,-1012.33,0.00050136,31]
[312638210,1706122328182,-876.45,0.00050136,31]
[312638211,1706122328192,-500.0,0.00050136,31]
[312638212,1706122328201,-715.02,0.00050136,31]
[312638213,1706122328210,-500.0,0.00050136,7]
[312638214,1706122328220,-500.0,0.00050136,31]
[312638215,1706122328229,-833.81,0.00050136,31]
[312638216,1706122328239,-516.30483149,0.00050136,31]
[312638217,1706122328249,-500.0,0.00050136,31]
[312638218,1706122328258,-1061.9,0.00050136,31]
[312638219,1706122328268,-500.0,0.00050136,31]
[312638220,1706122328278,-1257.58,0.00050136,31]
[312638221,1706122328288,-500.0,0.00050136,31]
[312638222,1706122328299,-500.0,0.00050136,31]
[312638223,1706122328309,-980.87,0.00050136,31]
[312638224,1706122328319,-642.76,0.00050136,31]
[312638225,1706122328329,-2365.7,0.00050136,31]
[312638226,1706122328339,-550.34,0.00050136,31]
[312638227,1706122328349,-500.0,0.00050136,31]
[312638228,1706122328359,-500.0,0.00050136,31]
[312638229,1706122328369,-500.0,0.00050136,31]
[312638230,1706122328380,-9651.62,0.00050136,5]
[312638231,1706122328390,-535.87175752,0.00050136,31]
[312638232,1706122328400,-500.0,0.00050136,31]
[312638233,1706122328410,-500.0,0.00050136,31]
[312638234,1706122328420,-255.34420071,0.00050136,31]
[312638235,1706122328429,-500.0,0.00050136,31]
[312638236,1706122328439,-500.0,0.00050136,31]
[312638237,1706122328449,-1273.8,0.00050136,31]
[312638238,1706122328458,-516.0,0.00050136,31]
[312638239,1706122328468,-259.15,0.00050136,31]
[312638240,1706122328477,-500.0,0.00050136,31]
[312638241,1706122328487,-848.97,0.00050136,31]
[312638242,1706122328496,-826.53,0.00050136,31]
[312638243,1706122328505,-500.0,0.00050136,31]
[312638244,1706122328515,-500.0,0.00050136,31]
[312638245,1706122328524,-500.0,0.00050136,31]
[312638246,1706122328534,-570.78,0.00050136,31]
[312638247,1706122328543,-750.28,0.00050136,31]
[312638248,1706122328553,-500.0,0.00050136,31]
[312638249,1706122328563,-647.3,0.00050136,31]
[312638250,1706122328572,-1277.6,0.00050136,31]
[312638251,1706122328583,-886.52,0.00050136,31]
[312638252,1706122328592,-500.0,0.00050136,31]
[312638253,1706122328602,-744.61,0.00050136,31]
[312638254,1706122328611,-6353.27,0.00050136,5]
[312638255,1706122328621,-500.0,0.00050136,31]
[312638256,1706122328630,-688.18,0.00050136,31]
[312638257,1706122328639,-500.0,0.00050136,31]
[312638258,1706122328648,-510.46780373,0.00050136,31]
[312638259,1706122328658,-500.0,0.00050136,31]
[312638260,1706122328667,-585.99,0.00050136,31]
[312638261,1706122328677,-500.0,0.00050136,31]
[312638262,1706122328686,-500.0,0.00050136,31]
[312638263,1706122328696,-1311.12,0.00050136,31]
[312638264,1706122328706,-500.0,0.00050136,31]
[312638265,1706122328716,-500.0,0.00050136,31]
[312638266,1706122328726,-635.69,0.00050136,31]
[312638267,1706122328735,-500.0,0.00050136,31]
[312638268,1706122328745,-2747.11,0.00050136,31]
[312638269,1706122328755,-1064.36,0.00050136,31]
[312638270,1706122328764,-500.0,0.00050136,31]
[312638271,1706122328775,-988.82,0.00050136,31]
[312638272,1706122328784,-336.97,0.00050136,31]
[312638273,1706122328794,-500.0,0.00050136,31]
[312638274,1706122328804,-500.0,0.00050136,31]
[312638275,1706122328813,-500.0,0.00050136,31]
[312638276,1706122328822,-500.0,0.00050136,31]
[312638277,1706122328833,-506.02,0.00050136,31]
[312638278,1706122328842,-500.0,0.00050136,31]
[312638279,1706122328851,-500.0,0.00050136,31]
[312638280,1706122328860,-4014.55,0.00050136,31]
[312638281,1706122328869,-996.79,0.00050136,31]
[312638282,1706122328879,-259.19298653,0.00050136,31]
[312638283,1706122328888,-500.0,0.00050136,31]
[312638284,1706122328897,-879.67,0.00050136,31]
[312638285,1706122328908,-500.0,0.00050136,31]
[312638286,1706122328917,-500.0,0.00050136,31]
[312638287,1706122328928,-500.0,0.00050136,31]
[312638288,1706122328937,-556.81,0.00050136,31]
[312638289,1706122328947,-500.0,0.00050136,31]
[312638290,1706122328956,-722.88,0.00050136,31]
[312638291,1706122328966,-1740.65,0.00050136,31]
[312638292,1706122328975,-891.73,0.00050136,31]
[312638293,1706122328984,-1603.09,0.00050136,31]
[312638294,1706122328993,-1257.39,0.00050136,31]
[312638295,1706122329003,-500.0,0.00050136,31]
[312638296,1706122329012,-223.67754032,0.00050136,31]
[312638297,1706122329021,-703.85,0.00050136,31]
[312638298,1706122329030,-500.0,0.00050136,31]
[312638299,1706122329039,-500.0,0.00050136,31]
[312638300,1706122329048,-500.0,0.00050136,31]
[312638301,1706122329058,-4733.77,0.00050136,31]
[312638302,1706122329067,-534.53,0.00050136,31]
[312638303,1706122329077,-3077.84,0.00050136,31]
[312638304,1706122329087,-2216.62,0.00050136,31]
[312638305,1706122329096,-500.0,0.00050136,31]
[312638306,1706122329106,-654.54,0.00050136,31]
[312638307,1706122329115,-1335.18,0.00050136,31]
[312638308,1706122329124,-500.0,0.00050136,31]
[312638309,1706122329134,-820.02,0.00050136,31]
[312638310,1706122329143,-603.22,0.00050136,31]
[312638311,1706122329151,-4058.85,0.00050136,31]
[312638312,1706122329161,-500.0,0.00050136,31]
[312638313,1706122329170,-500.0,0.00050136,30]
[312638314,1706122329180,-870.48,0.00050136,31]
[312638315,1706122329189,-1196.3,0.00050136,31]
[312638316,1706122329198,-691.03,0.00050136,31]
[312638317,1706122329207,-500.0,0.00050136,31]
[312638318,1706122329217,-500.0,0.00050136,31]
[312638319,1706122329226,-506.34,0.00050136,31]
[312638320,1706122329235,-500.0,0.00050136,31]
[312638321,1706122329245,-1595.23,0.00050136,31]
[312638322,1706122329254,-500.0,0.00050136,31]
[312638323,1706122329263,-9475.21,0.00050136,31]
[312638324,1706122329273,-2256.81,0.00050136,31]
[312638325,1706122329283,-500.0,0.00050136,31]
[312638326,1706122329292,-500.0,0.00050136,31]
[312638327,1706122329305,-500.0,0.00050136,31]
[312638328,1706122329315,-2007.79,0.00050136,31]
[312638329,1706122329324,-500.0,0.00050136,31]
[312638330,1706122329336,-504.15,0.00050136,31]
[312638331,1706122329345,-949.97,0.00050136,31]
[312638332,1706122329355,-326.58850124,0.00050136,31]
[312638333,1706122329366,-760.02,0.00050136,31]
[312638334,1706122329376,-1753.67,0.00050136,2]
[312638335,1706122329386,-500.0,0.00050136,31]
[312638336,1706122329396,-960.34,0.00050136,31]
[312638337,1706122329405,-895.93,0.00050136,31]
[312638338,1706122329414,-500.0,0.00050136,31]
[312638339,1706122329424,-500.0,0.00050136,31]
[312638340,1706122329434,-500.0,0.00050136,31]
[312638341,1706122329443,-500.0,0.00050136,31]
[312638342,1706122329453,-9793.91,0.00050136,31]
[312638343,1706122329462,-630.07,0.00050136,31]
[312638344,1706122329471,-500.0,0.00050136,31]
[312638345,1706122329482,-1085.19,0.00050136,31]
[312638346,1706122329492,-500.0,0.00050136,31]
[312638347,1706122329502,-733.81,0.00050136,31]
[312638348,1706122329511,-500.0,0.00050136,31]
[312638349,1706122329521,-500.0,0.00050136,31]
[312638350,1706122329530,-822.62,0.00050136,31]
[312638351,1706122329540,-500.0,0.00050136,31]
[312638352,1706122329550,-786.38,0.00050136,31]
[312638353,1706122329559,-5724.55,0.00050136,31]
[312638354,1706122329568,-2304.75,0.00050136,31]
[312638355,1706122329579,-583.81,0.00050136,31]
[312638356,1706122329588,-1209.52,0.00050136,31]
[312638357,1706122329597,-500.0,0.00050136,31]
[312638358,1706122329606,-500.0,0.00050136,31]
[312638359,1706122329615,-500.0,0.00050136,31]
[312638360,1706122329625,-921.04,0.00050136,31]
[312638361,1706122329714,-1294.87,0.00050136,31]
[312638362,1706122329724,-593.18,0.00050136,31]
[312638363,1706122329733,-500.0,0.00050136,31]
[312638364,1706122329742,-1239.0,0.00050136,31]
[312638365,1706122329752,-650.95,0.00050136,31]
[312638366,1706122329761,-604.69,0.00050136,31]
[312638367,1706122329770,-1539.95,0.00050136,31]
[312638368,1706122329779,-8834.98,0.00050136,31]
[312638369,1706122329789,-500.0,0.00050136,31]
[312638370,1706122329798,-547.48,0.00050136,31]
[312638371,1706122329807,-500.0,0.00050136,31]
[312638372,1706122329816,-500.0,0.00050136,31]
[312638373,1706122329825,-1282.38,0.00050136,31]
[312638374,1706122329836,-2142.95,0.00050136,7]
[312638375,1706122329845,-966.05,0.00050136,31]
[312638376,1706122329854,-747.91,0.00050136,31]
[312638377,1706122329863,-1871.41,0.00050136,31]
[312638378,1706122329872,-912.87,0.00050136,31]
[312638379,1706122329882,-1116.62,0.00050136,31]
[312638380,1706122329891,-833.57,0.00050136,31]
[312638381,1706122329900,-519.58032268,0.00050136,31]
[312638382,1706122329910,-500.0,0.00050136,31]
[312638383,1706122329919,-500.0,0.00050136,31]
[312638384,1706122329928,-1268.63,0.00050136,31]
[312638385,1706122329937,-646.44,0.00050136,31]
[312638386,1706122329947,-657.31,0.00050136,31]
[312638387,1706122329956,-500.0,0.00050136,31]
[312638388,1706122329965,-500.0,0.00050136,31]
[312638389,1706122329974,-731.18,0.00050136,31]
[312638390,1706122329983,-1207.08,0.00050136,31]
[312638391,1706122329993,-1174.69,0.00050136,31]
[312638392,1706122330002,-500.0,0.00050136,31]
[312638393,1706122330011,-2581.31,0.00050136,31]
[312638394,1706122330020,-740.71,0.00050136,31]
[312638395,1706122330030,-1329.41,0.00050136,31]
[312638396,1706122330040,-1378.41,0.00050136,31]
[312638397,1706122330048,-950.0,0.00050136,7]
[312638398,1706122330058,-545.75,0.00050136,31]
[312638399,1706122330066,-500.0,0.00050136,31]
[312638400,1706122330076,-500.0,0.00050136,31]
[312638401,1706122330086,-1309.93,0.00050136,31]
[312638402,1706122330095,-500.0,0.00050136,31]
[312638403,1706122330104,-500.0,0.00050136,31]
[312638404,1706122330114,-500.0,0.00050136,31]
[312638405,1706122330122,-973.63,0.00050136,31]
[312638406,1706122330132,-500.0,0.00050136,31]
[312638407,1706122330141,-1370.14,0.00050136,31]
[312638408,1706122330150,-500.0,0.00050136,31]
[312638409,1706122330159,-500.0,0.00050136,31]
[312638410,1706122330168,-500.0,0.00050136,31]
[312638411,1706122330178,-500.0,0.00050136,31]
[312638412,1706122330187,-625.5,0.00050136,31]
[312638413,1706122330196,-561.88,0.00050136,31]
[312638414,1706122330206,-500.0,0.00050136,31]
[312638415,1706122330215,-500.0,0.00050136,31]
[312638416,1706122330225,-500.0,0.00050136,31]
[312638417,1706122330234,-1202.1,0.00050136,31]
[312638418,1706122330245,-1086.56,0.00050136,31]
[312638419,1706122330255,-4191.4,0.00050136,31]
[312638420,1706122330264,-712.36,0.00050136,31]
[312638421,1706122330273,-284.17358626,0.00050136,31]
[312638422,1706122330282,-1256.89,0.00050136,31]
[312638423,1706122330291,-500.0,0.00050136,31]
[312638424,1706122330305,-510.32028745,0.00050136,31]
[312638425,1706122330314,-1151.56,0.00050136,31]
[312638426,1706122330323,-593.19,0.00050136,31]
[312638427,1706122330333,-1249.41,0.00050136,31]
[312638428,1706122330344,-500.0,0.00050136,31]
[312638429,1706122330353,-568.03991988,0.00050136,31]
[312638430,1706122330361,-500.0,0.00050136,31]
[312638431,1706122330370,-500.0,0.00050136,31]
[312638432,1706122330380,-508.67838786,0.00050136,31]
[312638433,1706122330389,-500.0,0.00050136,31]
[312638434,1706122330399,-500.0,0.00050136,31]
[312638435,1706122330408,-500.0,0.00050136,31]
[312638436,1706122330417,-500.0,0.00050136,31]
[312638437,1706122330426,-500.0,0.00050136,31]
[312638438,1706122330436,-500.0,0.00050136,31]
[312638439,1706122330445,-1307.18,0.00050136,31]
[312638440,1706122330454,-500.0,0.00050136,31]
[312638441,1706122330463,-795.62,0.00050136,31]
[312638442,1706122330474,-749.12,0.00050136,31]
[312638443,1706122330483,-696.33,0.00050136,31]
[312638444,1706122330492,-500.0,0.00050136,31]
[312638445,1706122330502,-500.0,0.00050136,14]
[312638446,1706122330511,-500.0,0.00050136,31]
[312638447,1706122330521,-1284.18,0.00050136,31]
[312638448,1706122330530,-652.98,0.00050136,31]
[312638449,1706122330540,-981.53,0.00050136,31]
[312638450,1706122330549,-523.2,0.00050136,31]
[312638451,1706122330558,-648.47,0.00050136,31]
[312638452,1706122330567,-510.01,0.00050136,31]
[312638453,1706122330576,-609.97,0.00050136,31]
[312638454,1706122330588,-668.31,0.00050136,31]
[312638455,1706122330597,-1472.4,0.00050136,31]
[312638456,1706122330606,-982.27,0.00050136,31]
[312638457,1706122330615,-500.0,0.00050136,31]
[312638458,1706122330624,-500.0,0.00050136,31]
[312638459,1706122330633,-500.0,0.00050136,31]
[312638460,1706122330642,-975.67,0.00050136,31]
[312638461,1706122330651,-1275.47,0.00050136,20]
[312638462,1706122330660,-500.0,0.00050136,31]
[312638463,1706122330669,-859.46,0.00050136,31]
[312638464,1706122330679,-500.0,0.00050136,31]
[312638465,1706122330688,-2167.45,0.00050136,31]
[312638466,1706122330697,-500.0,0.00050136,31]
[312638467,1706122330706,-500.0,0.00050136,31]
[312638468,1706122330715,-500.0,0.00050136,31]
[312638469,1706122330724,-666.0,0.00050136,31]
[312638470,1706122330734,-1089.95,0.00050136,31]
[312638471,1706122330743,-641.64,0.00050136,31]
[312638472,1706122330752,-924.64,0.00050136,31]
[312638473,1706122330762,-1430.01,0.00050136,31]
[312638474,1706122330771,-500.0,0.00050136,31]
[312638475,1706122330781,-536.15,0.00050136,31]
[312638476,1706122330791,-589.35,0.00050136,31]
[312638477,1706122330800,-500.0,0.00050136,31]
[312638478,1706122330810,-6481.22,0.00050136,31]
[312638479,1706122330819,-1564.68,0.00050136,31]
[312638480,1706122330829,-1129.08,0.00050136,31]
[312638481,1706122330842,-944.64,0.00050136,31]
[312638482,1706122330851,-500.0,0.00050136,31]
[312638483,1706122330861,-500.0,0.00050136,31]
[312638484,1706122330871,-500.0,0.00050136,31]
[312638485,1706122330881,-500.0,0.00050136,31]
[312638486,1706122330892,-500.0,0.00050136,31]
[312638487,1706122330902,-500.0,0.00050136,30]
[312638488,1706122330911,-1816.2,0.00050136,31]
[312638489,1706122330921,-500.0,0.00050136,31]
[312638490,1706122330931,-500.0,0.00050136,31]
[312638491,1706122330941,-887.53,0.00050136,31]
[312638492,1706122330950,-677.18,0.00050136,31]
[312638493,1706122330959,-1137.33,0.00050136,31]
[312638494,1706122330969,-1033.79,0.00050136,31]
[312638495,1706122330979,-952.51,0.00050136,31]
[312638496,1706122330988,-750.26,0.00050136,31]
[312638497,1706122330997,-500.0,0.00050136,31]
[312638498,1706122331007,-500.0,0.00050136,31]
[312638499,1706122331017,-500.0,0.00050136,31]
[312638500,1706122331026,-616.97,0.00050136,31]
[312638501,1706122331036,-500.0,0.00050136,7]
[312638502,1706122331045,-500.0,0.00050136,31]
[312638503,1706122331054,-1156.88,0.00050136,31]
[312638504,1706122331063,-575.07,0.00050136,31]
[312638505,1706122331073,-500.0,0.00050136,31]
[312638506,1706122331083,-520.39934938,0.00050136,31]
[312638507,1706122331092,-7701.48,0.00050136,15]
[312638508,1706122331102,-500.0,0.00050136,31]
[312638509,1706122331113,-364.27760777,0.00050136,31]
[312638510,1706122331123,-508.6,0.00050136,31]
[312638511,1706122331132,-500.0,0.00050136,31]
[312638512,1706122331142,-500.0,0.00050136,31]
[312638513,1706122331151,-500.0,0.00050136,31]
[312638514,1706122331161,-571.75,0.00050136,31]
[312638515,1706122331170,-588.05,0.00050136,31]
[312638516,1706122331179,-532.52,0.00050136,31]
[312638517,1706122331188,-828.94,0.00050136,31]
[312638518,1706122331197,-500.0,0.00050136,31]
[312638519,1706122331207,-500.0,0.00050136,31]
[312638520,1706122331216,-1048.36,0.00050136,31]
[312638521,1706122331225,-584.8208384,0.00050136,30]
[312638522,1706122331234,-500.0,0.00050136,31]
[312638523,1706122331244,-732.05,0.00050136,31]